Workbook

Sheet Sheet1
B1: Euler's Method
C2: y' = f(x)
B4: This graphing utility illustrates
B5: Euler's Method to approximate the solution
B6: of any first order differential equation
D7: y' = f(x)
B8: with initial conditions x0 and y0
B9: extending from x = a to x = b.
A11: Enter the function in terms of x only: f(x) = | F11: x*cos(x)
A13: Now enter the initial conditions:
B14: The initial value x0 of x is | E14: 1
B15: The initial value y0 of y is | E15: 6
A17: To what value of x should the solutions extend? | J17: The solution of the D.E. y' = | M17: =F11 -> x*cos(x)
C18: xMax = | D18: 9
I19: Now select all the Euler approximations you want to see
J21: TRUE
J23: TRUE
J25: TRUE
A26: Click each item below for suggestions and investigations
B27: Item 1
B28: Item 2 | J28: FALSE
B29: Item 3
B30: Item 4
J31: FALSE
A33: To access/download all the DIGMath Apps for Calculus | J33: FALSE
A34: Click this link: | C34: DIGMath for Calculus
A36: Created by: Sheldon P. Gordon
A37: Farmingdale State College
A38: Development of this module was supported by the
A39: NSF's Division of Undergraduate Education
A40: under grants DUE-0310123 and DUE-0442160.

Sheet Sheet2
C1: x | D1: y' = f(x) | E1: y
G2: =Sheet1!#REF! -> 
C3: =x0 -> 1 | D3: =x*COS(x) -> 0.5403023059 | E3: =y0 -> 6 | I3: Note: 2-D data table is full array
A4: delta x = | B4: =(b-a)/257 -> 0.03112840467 | C4: =C3+dx -> 1.031128405 | D4: 0.5298465034 | E4: =E3+D3*dx -> 6.016818749
C5: 1.062256809 | D5: 0.5172150697 | E5: 6.033312025 | H5: xMin = | I5: =x0 -> 1
C6: 1.093385214 | D6: 0.5023900604 | E6: 6.049412105
C7: 1.124513619 | D7: 0.4853572962 | E7: 6.065050706
C8: 1.155642023 | D8: 0.4661064045 | E8: 6.080159105
C9: 1.186770428 | D9: 0.4446308552 | E9: 6.094668253
C10: 1.217898833 | D10: 0.4209279916 | E10: 6.108508903
C11: 1.249027237 | D11: 0.3949990556 | E11: 6.121611719
C12: 1.280155642 | D12: 0.366849208 | E12: 6.13390741
C13: 1.311284047 | D13: 0.336487542 | E13: 6.14532684
C14: 1.342412451 | D14: 0.3039270926 | E14: 6.155801161
C15: 1.373540856 | D15: 0.26918484 | E15: 6.165261926
C16: 1.404669261 | D16: 0.2322817067 | E16: 6.173641221
C17: 1.435797665 | D17: 0.1932425499 | E17: 6.18087178
C18: 1.46692607 | D18: 0.1520961479 | E18: 6.186887112
C19: 1.498054475 | D19: 0.1088751811 | E19: 6.191621623
C20: 1.529182879 | D20: 0.06361620716 | E20: 6.195010733
C21: 1.560311284 | D21: 0.01635963076 | E21: 6.196991004
C22: 1.591439689 | D22: -0.03285033217 | E22: 6.197500254
C23: 1.622568093 | D23: -0.08396569578 | E23: 6.196477675
C24: 1.653696498 | D24: -0.1369347511 | E24: 6.193863957
C25: 1.684824903 | D25: -0.1917021183 | E25: 6.189601397
C26: 1.715953307 | D26: -0.2482088042 | E26: 6.183634016
C27: 1.747081712 | D27: -0.3063922651 | E27: 6.175907672
C28: 1.778210117 | D28: -0.3661864753 | E28: 6.166370169
C29: 1.809338521 | D29: -0.4275219999 | E29: 6.154971368
C30: 1.840466926 | D30: -0.4903260735 | E30: 6.14166329
C31: 1.871595331 | D31: -0.5545226839 | E31: 6.126400222
C32: 1.902723735 | D32: -0.6200326598 | E32: 6.109138816
C33: 1.93385214 | D33: -0.6867737645 | E33: 6.089838188
C34: 1.964980545 | D34: -0.7546607934 | E34: 6.068460016
C35: 1.996108949 | D35: -0.8236056767 | E35: 6.04496863
C36: 2.027237354 | D36: -0.8935175862 | E36: 6.019331099
C37: 2.058365759 | D37: -0.9643030468 | E37: 5.991517322
C38: 2.089494163 | D38: -1.035866051 | E38: 5.961500107
C39: 2.120622568 | D39: -1.108108182 | E39: 5.929255249
C40: 2.151750973 | D40: -1.18092873 | E40: 5.894761609
C41: 2.182879377 | D41: -1.254224828 | E41: 5.858001182
C42: 2.214007782 | D42: -1.327891577 | E42: 5.818959164
C43: 2.245136187 | D43: -1.401822184 | E43: 5.777624017
C44: 2.276264591 | D44: -1.475908096 | E44: 5.733987529
C45: 2.307392996 | D45: -1.550039144 | E45: 5.688044865
C46: 2.338521401 | D46: -1.624103686 | E46: 5.639794619
C47: 2.369649805 | D47: -1.697988754 | E47: 5.589238862
C48: 2.40077821 | D48: -1.771580203 | E48: 5.536383181
C49: 2.431906615 | D49: -1.844762863 | E49: 5.481236716
C50: 2.463035019 | D50: -1.917420692 | E50: 5.423812191
C51: 2.494163424 | D51: -1.989436935 | E51: 5.364125943
C52: 2.525291829 | D52: -2.06069428 | E52: 5.302197945
C53: 2.556420233 | D53: -2.131075016 | E53: 5.23805182
C54: 2.587548638 | D54: -2.200461198 | E54: 5.171714855
C55: 2.618677043 | D55: -2.268734808 | E55: 5.103218008
C56: 2.649805447 | D56: -2.335777917 | E56: 5.032595913
C57: 2.680933852 | D57: -2.40147285 | E57: 4.959886872
C58: 2.712062257 | D58: -2.465702354 | E58: 4.885132854
C59: 2.743190661 | D59: -2.528349761 | E59: 4.808379473
C60: 2.774319066 | D60: -2.589299151 | E60: 4.729675979
C61: 2.805447471 | D61: -2.648435524 | E61: 4.649075227
C62: 2.836575875 | D62: -2.705644963 | E62: 4.566633654
C63: 2.86770428 | D63: -2.760814795 | E63: 4.482411243
C64: 2.898832685 | D64: -2.813833763 | E64: 4.396471483
C65: 2.929961089 | D65: -2.864592185 | E65: 4.308881327
C66: 2.961089494 | D66: -2.912982118 | E66: 4.219711142
C67: 2.992217899 | D67: =x*COS(x) -> -2.958897518 | E67: 4.129034656
C68: =C67+dx -> 3.023346304 | D68: -3.002234405 | E68: =E67+D67*dx -> 4.036928896
C69: 3.054474708 | D69: -3.042891014 | E69: 3.943474129
C70: 3.085603113 | D70: -3.080767958 | E70: 3.848753786
C71: 3.116731518 | D71: -3.115768379 | E71: 3.752854394
C72: 3.147859922 | D72: -3.147798101 | E72: 3.655865495
C73: 3.178988327 | D73: -3.176765779 | E73: 3.557879562
C74: 3.210116732 | D74: -3.202583049 | E74: 3.458991912
C75: 3.241245136 | D75: -3.225164668 | E75: 3.359300611
C76: 3.272373541 | D76: -3.244428655 | E76: 3.25890638
C77: 3.303501946 | D77: -3.260296432 | E77: 3.157912492
C78: 3.33463035 | D78: -3.272692957 | E78: 3.056424665
C79: 3.365758755 | D79: -3.281546852 | E79: 2.954550954
C80: 3.39688716 | D80: -3.286790534 | E80: 2.852401636
C81: 3.428015564 | D81: -3.288360333 | E81: 2.75008909
C82: 3.459143969 | D82: -3.286196614 | E82: 2.647727679
C83: 3.490272374 | D83: -3.28024389 | E83: 2.545433621
C84: 3.521400778 | D84: -3.27045093 | E84: 2.443324862
C85: 3.552529183 | D85: -3.256770866 | E85: 2.341520942
C86: 3.583657588 | D86: -3.239161293 | E86: 2.24014286
C87: 3.614785992 | D87: -3.217584363 | E87: 2.139312937
C88: 3.645914397 | D88: -3.192006873 | E88: 2.039154668
C89: 3.677042802 | D89: -3.162400355 | E89: 1.939792587
C90: 3.708171206 | D90: -3.128741149 | E90: 1.841352109
C91: 3.739299611 | D91: -3.091010481 | E91: 1.743959388
C92: 3.770428016 | D92: -3.049194531 | E92: 1.647741163
C93: 3.80155642 | D93: -3.00328449 | E93: 1.552824602
C94: 3.832684825 | D94: -2.953276624 | E94: 1.459337147
C95: 3.86381323 | D95: -2.899172317 | E95: 1.367406357
C96: 3.894941634 | D96: -2.84097812 | E96: 1.277159748
C97: 3.926070039 | D97: -2.778705789 | E97: 1.188724631
C98: 3.957198444 | D98: -2.712372315 | E98: 1.102227953
C99: 3.988326848 | D99: -2.641999947 | E99: 1.01779613
C100: 4.019455253 | D100: -2.56761622 | E100: 0.9355548866
C101: 4.050583658 | D101: -2.489253956 | E101: 0.8556290899
C102: 4.081712062 | D102: -2.406951282 | E102: 0.7781425854
C103: 4.112840467 | D103: -2.320751618 | E103: 0.7032180319
C104: 4.143968872 | D104: -2.230703681 | E104: 0.6309767364
C105: 4.175097276 | D105: -2.136861464 | E105: 0.5615384895
C106: 4.206225681 | D106: -2.039284218 | E106: 0.4950214012
C107: 4.237354086 | D107: -1.938036429 | E107: 0.4315417368
C108: 4.26848249 | D108: -1.833187777 | E108: 0.3712137546
C109: 4.299610895 | D109: -1.724813102 | E109: 0.3141495436
C110: 4.3307393 | D110: -1.612992359 | E110: 0.2604588634
C111: 4.361867704 | D111: -1.497810556 | E111: 0.2102489845
C112: 4.392996109 | D112: -1.379357704 | E112: 0.1636245314
C113: 4.424124514 | D113: -1.257728745 | E113: 0.1206873266
C114: 4.455252918 | D114: -1.13302348 | E114: 0.08153623732
C115: 4.486381323 | D115: -1.005346493 | E115: 0.04626702392
C116: 4.517509728 | D116: -0.8748070614 | E116: 0.01497219144
C117: 4.548638132 | D117: -0.7415190647 | E117: -0.01225915677
C118: 4.579766537 | D118: -0.6056008887 | E118: -0.03534146229
C119: 4.610894942 | D119: -0.4671753197 | E119: -0.05419285182
C120: 4.642023346 | D120: -0.3263694338 | E120: -0.06873527422
C121: 4.673151751 | D121: -0.1833144816 | E121: -0.07889463403
C122: 4.704280156 | D122: -0.03814576529 | E122: -0.0846009214
C123: 4.73540856 | D123: 0.1089974889 | E123: -0.08578833821
C124: 4.766536965 | D124: 0.2579722644 | E124: -0.08239542027
C125: 4.79766537 | D125: 0.408631893 | E125: -0.07436515523
C126: 4.828793774 | D126: 0.5608261996 | E126: -0.0616450963
C127: 4.859922179 | D127: 0.7144016514 | E127: -0.04418747141
C128: 4.891050584 | D128: 0.869201513 | E128: -0.02194928771
C129: 4.922178988 | D129: 1.025066005 | E129: 0.005107568724
C130: 4.953307393 | D130: 1.181832471 | E130: 0.03701623816
C131: 4.984435798 | D131: =x*COS(x) -> 1.339335541 | E131: 0.07380479756
C132: =C131+dx -> 5.015564202 | D132: 1.497407312 | E132: =E131+D131*dx -> 0.1154961763
C133: 5.046692607 | D133: 1.655877518 | E133: 0.162108077
C134: 5.077821012 | D134: 1.814573718 | E134: 0.2136529025
C135: 5.108949416 | D135: 1.973321478 | E135: 0.2701376875
C136: 5.140077821 | D136: 2.131944559 | E136: 0.331564037
C137: 5.171206226 | D137: 2.290265112 | E137: 0.3979280699
C138: 5.20233463 | D138: 2.448103875 | E138: 0.4692203692
C139: 5.233463035 | D139: 2.605280367 | E139: 0.5454259373
C140: 5.26459144 | D140: 2.761613092 | E140: 0.6265241588
C141: 5.295719844 | D141: 2.916919745 | E141: 0.7124887687
C142: 5.326848249 | D142: 3.071017416 | E142: 0.8032878269
C143: 5.357976654 | D143: 3.223722799 | E143: 0.8988836998
C144: 5.389105058 | D144: 3.374852403 | E144: 0.9992330476
C145: 5.420233463 | D145: 3.524222766 | E145: 1.104286819
C146: 5.451361868 | D146: 3.671650665 | E146: 1.213990251
C147: 5.482490272 | D147: 3.816953333 | E147: 1.328282879
C148: 5.513618677 | D148: 3.959948675 | E148: 1.447098547
C149: 5.544747082 | D149: 4.100455484 | E149: 1.570365432
C150: 5.575875486 | D150: 4.238293656 | E150: 1.698006069
C151: 5.607003891 | D151: 4.373284411 | E151: 1.829937389
C152: 5.638132296 | D152: 4.505250508 | E152: 1.966070756
C153: 5.6692607 | D153: 4.634016459 | E153: 2.106312017
C154: 5.700389105 | D154: 4.759408753 | E154: 2.250561557
C155: 5.73151751 | D155: 4.88125606 | E155: 2.398714359
C156: 5.762645914 | D156: 4.999389456 | E156: 2.550660072
C157: 5.793774319 | D157: 5.113642629 | E157: 2.706283091
C158: 5.824902724 | D158: 5.223852095 | E158: 2.865462628
C159: 5.856031128 | D159: 5.329857404 | E159: 3.02807281
C160: 5.887159533 | D160: 5.431501348 | E160: 3.193982768
C161: 5.918287938 | D161: 5.528630169 | E161: 3.36305674
C162: 5.949416342 | D162: 5.621093758 | E162: 3.535154177
C163: 5.980544747 | D163: 5.708745857 | E163: 3.710129858
C164: 6.011673152 | D164: 5.791444254 | E164: 3.887834009
C165: 6.042801556 | D165: 5.869050978 | E165: 4.068112429
C166: 6.073929961 | D166: 5.941432488 | E166: 4.250806623
C167: 6.105058366 | D167: 6.008459857 | E167: 4.435753938
C168: 6.13618677 | D168: 6.070008957 | E168: 4.622787708
C169: 6.167315175 | D169: 6.125960635 | E169: 4.811737403
C170: 6.19844358 | D170: 6.176200887 | E170: 5.002428785
C171: 6.229571984 | D171: 6.220621024 | E171: 5.194684065
C172: 6.260700389 | D172: 6.25911784 | E172: 5.388322074
C173: 6.291828794 | D173: 6.291593764 | E173: 5.583158427
C174: 6.322957198 | D174: 6.31795702 | E174: 5.779005704
C175: 6.354085603 | D175: 6.338121768 | E175: 5.975673626
C176: 6.385214008 | D176: 6.35200825 | E176: 6.172969246
C177: 6.416342412 | D177: 6.359542923 | E177: 6.370697129
C178: 6.447470817 | D178: 6.36065859 | E178: 6.568659554
C179: 6.478599222 | D179: 6.355294522 | E179: 6.766656709
C180: 6.509727626 | D180: 6.343396577 | E180: 6.964486889
C181: 6.540856031 | D181: 6.324917306 | E181: 7.161946704
C182: 6.571984436 | D182: 6.29981606 | E182: 7.35883129
C183: 6.60311284 | D183: 6.268059083 | E183: 7.554934513
C184: 6.634241245 | D184: 6.229619604 | E184: 7.750049193
C185: 6.66536965 | D185: 6.184477916 | E185: 7.943967313
C186: 6.696498054 | D186: 6.132621451 | E186: 8.136480244
C187: 6.727626459 | D187: 6.074044848 | E187: 8.327378966
C188: 6.758754864 | D188: 6.008750011 | E188: 8.516454292
C189: 6.789883268 | D189: 5.936746161 | E189: 8.703497094
C190: 6.821011673 | D190: 5.858049878 | E190: 8.888298531
C191: 6.852140078 | D191: 5.772685138 | E191: 9.070650278
C192: 6.883268482 | D192: 5.680683338 | E192: 9.250344757
C193: 6.914396887 | D193: 5.58208332 | E193: 9.427175367
C194: 6.945525292 | D194: 5.476931377 | E194: 9.600936716
C195: 6.976653696 | D195: =x*COS(x) -> 5.36528126 | E195: 9.771424852
C196: =C195+dx -> 7.007782101 | D196: 5.247194168 | E196: =E195+D195*dx -> 9.938437498
C197: 7.038910506 | D197: 5.122738738 | E197: 10.10177428
C198: 7.070038911 | D198: 4.991991024 | E198: 10.26123697
C199: 7.101167315 | D199: 4.85503446 | E199: 10.41662968
C200: 7.13229572 | D200: 4.711959827 | E200: 10.56775916
... 318 more rows

Sheet Defining Function
A1: Defining a Function in Excel
A3: Computers have very specific rules you must follow when defining a function. If you don't, the program will either not work at all or will work incorrectly.
A5: 1. The Variable used should be the one named in the instruction, usually x, though sometimes y, t, Q (for an angle theta),
A6: or even x and y (for a function of two variables).
A8: 2. Order of Operations: There five arithmetic operations, addition (+), subtraction (-), multiplication (*), division (/), and exponentiation or power (^). When computers see any of these operation symbols, they perform the indicated steps in a very particular order. First, the power is done. Second, products and quotients of adjacent terms is done. Third, and last, sums and differences of adjacent terms are done. So, in 10*x^3 + 5*x – 7, say with x = 2, the first pass only calculates 2^3 and ignores the multiplications and the sums and differences to calculate 2^3 = 8. The second pass looks at 10*8 + 5*2 – 7 and only does the multiplications, so it produces 80 + 10 - 7. The third pass looks at the +’s and –‘s to produce 80 + 10 – 7 = 83.
A10: 3. Parentheses If you need an operation involving more than two adjacent terms, as in Ö4^3 + 6^2, the computer would take the square root of 4 to produce 2^3 + 6^2; it would then cube the 2 and square the 6 to produce 8 + 36; and finally it would add the 8 and the 36 to get 44. If you actually wanted the square root of the entire expression, you would need to use parentheses, as in Ö(4^3 + 6^2) to tell the computer to do all the operations inside the parentheses before taking the square root. Therefore, it would calculate (4^3 + 6^2) = 64 + 36 = 100 and then take the square root of Ö100 = 10.
A12: 4. Built-In Functions Computer programs have built-in functions for most common algebraic functions. In Excel, the square root function is denoted by SQRT(…), so SQRT(100) = 10. Alternatively, you could enter it as 100^.5 or 100^(1/2); notice that parentheses are needed to have the ½ done first. The common trig functions are SIN (…), COS (…), and TAN (…), where the arguments are automatically interpreted as being in radians, not degrees. The logarithm to the base 10 is represented by LOG (…) and the logarithm with the base e, known as the natural logarithm, is LN (…). The corresponding exponential function with base e is EXP (x). If x is the variable, then each of these would be SQRT (x), SIN (x), COS (x), TAN (x), LOG (x) (for log with base 10 ), LN (x) (for log with base e ), and EXP (x).

Sheet Sheet3
